fUSD/lending_fUSD_20260611
["ID","MTS","AMOUNT","RATE_DAILY","PERIOD"]
[424758820,1781131833000,-239.17817,0.00012643,2]
[424758814,1781131833000,-170.078813,0.0001258,2]
[424758807,1781131833000,-500.0,0.00012502,2]
[424758808,1781131833000,-687.86608646,0.00012503,2]
[424758805,1781131833000,-250.0,0.00012471,2]
[424758806,1781131833000,-687.86608646,0.00012481,2]
[424758804,1781131833000,-687.86608646,0.00012457,2]
[424758803,1781131833000,-150.0,0.00012454,2]
[424758802,1781131833000,-2000.0,0.0001245,2]
[424758812,1781131833000,-262.061187,0.0001258,2]
[424758821,1781131833000,-442.50064,0.00012643,2]
[424758810,1781131833000,-687.86608646,0.00012546,2]
[424758825,1781131833000,-687.86608646,0.00012698,2]
[424758824,1781131833000,-687.86608646,0.00012681,2]
[424758843,1781131833000,-706099.69002545,0.00012836,2]
[424758841,1781131833000,-687.86608646,0.00012828,2]
[424758842,1781131833000,-150.0,0.00012836,2]
[424758838,1781131833000,-687.86608646,0.00012797,2]
[424758834,1781131833000,-687.86608646,0.00012765,2]
[424758836,1781131833000,-687.86608646,0.00012781,2]
[424758832,1781131833000,-867.95385313,0.00012743,2]
[424758840,1781131833000,-687.86608646,0.00012813,2]
[424758839,1781131833000,-2100.0,0.000128,4]
[424758835,1781131833000,-500.0,0.00012776,2]
[424758831,1781131833000,-3677.34286296,0.00012743,2]
[424758830,1781131833000,-203.86939597,0.00012743,2]
[424758829,1781131833000,-687.86608646,0.00012732,2]
[424758837,1781131833000,-166.66,0.00012797,2]
[424758828,1781131833000,-687.86608646,0.00012715,2]
[424758826,1781131833000,-198.109466,0.00012706,2]
[424758827,1781131833000,-276.782244,0.00012706,2]
[424758823,1781131833000,-687.86608646,0.00012663,2]
[424758833,1781131833000,-687.86608646,0.00012749,2]
[424758865,1781131838000,-200.0,0.00012936,2]
[424758867,1781131838000,-687.86608646,0.00012943,2]
[424758870,1781131838000,-687.86608646,0.00012984,2]
[424758869,1781131838000,-687.86608646,0.0001297,2]
[424758872,1781131838000,-687.86608646,0.00012997,2]
[424758876,1781131838000,-500.0,0.00013005,5]
[424758874,1781131838000,-500.0,0.00013005,3]
[424758875,1781131838000,-500.0,0.00013005,4]
[424758873,1781131838000,-500.0,0.00013005,2]
[424758881,1781131838000,-687.86608646,0.00013023,2]
[424758866,1781131838000,-6830.62534949,0.00012936,2]
[424758871,1781131838000,-615.22,0.00012992,2]
[424758868,1781131838000,-687.86608646,0.00012957,2]
[424758853,1781131838000,-687.86608646,0.00012843,2]
[424758862,1781131838000,-687.86608646,0.00012901,2]
[424758861,1781131838000,-2800.0,0.000129,4]
[424758860,1781131838000,-188.67284726,0.00012891,7]
[424758859,1781131838000,-188.67284726,0.00012891,7]
[424758857,1781131838000,-275.96,0.00012877,2]
[424758858,1781131838000,-687.86608646,0.00012887,2]
[424758855,1781131838000,-687.86608646,0.00012873,2]
[424758856,1781131838000,-255.0,0.00012874,2]
[424758879,1781131838000,-500.0,0.00013005,8]
[424758854,1781131838000,-687.86608646,0.00012858,2]
[424758852,1781131838000,-790096.30997455,0.00012836,2]
[424758851,1781131838000,-3804.0,0.00012836,2]
[424758864,1781131838000,-687.86608646,0.00012929,2]
[424758877,1781131838000,-500.0,0.00013005,6]
[424758863,1781131838000,-687.86608646,0.00012916,2]
[424758880,1781131838000,-687.86608646,0.0001301,2]
[424758878,1781131838000,-500.0,0.00013005,7]
[424758909,1781131838000,-500.0,0.00013698,2]
[424758907,1781131838000,-500.0,0.00013698,2]
[424758906,1781131838000,-151.0,0.00013696,2]
[424758904,1781131838000,-151.0,0.00013637,2]
[424758902,1781131838000,-152.0,0.00013637,2]
[424758903,1781131838000,-151.0,0.00013637,2]
[424758905,1781131838000,-151.0,0.00013637,2]
[424758901,1781131838000,-152.0,0.00013637,2]
[424758900,1781131838000,-152.0,0.00013637,2]
[424758899,1781131838000,-152.0,0.00013637,2]
[424758896,1781131838000,-166.66,0.00013566,2]
[424758897,1781131838000,-152.0,0.00013637,2]
[424758898,1781131838000,-152.0,0.00013637,2]
[424758908,1781131838000,-500.0,0.00013698,2]
[424758895,1781131838000,-1113.6,0.00013511,2]
[424758894,1781131838000,-500.0,0.00013324,2]
[424758883,1781131838000,-151.0,0.00013033,2]
[424758885,1781131838000,-500.0,0.0001305,2]
[424758886,1781131838000,-200.0,0.00013065,2]
[424758887,1781131838000,-18606.89770862,0.00013093,2]
[424758884,1781131838000,-687.86608646,0.00013035,2]
[424758882,1781131838000,-151.0,0.00013033,2]
[424758892,1781131838000,-173.204051,0.00013275,2]
[424758889,1781131838000,-166.66,0.00013181,2]
[424758890,1781131838000,-200.0,0.00013196,2]
[424758893,1781131838000,-201.136654,0.00013275,2]
[424758891,1781131838000,-216.043963,0.00013209,2]
[424758888,1781131838000,-159.04,0.00013124,2]
[424758979,1781131839000,-551.34,0.00013698,2]
[424758974,1781131839000,-551.34,0.00013698,2]
[424758977,1781131839000,-551.34,0.00013698,2]
[424758949,1781131839000,-500.0,0.00013698,2]
[424758970,1781131839000,-551.34,0.00013698,2]
[424758973,1781131839000,-551.34,0.00013698,2]
[424758968,1781131839000,-551.34,0.00013698,2]
[424758963,1781131839000,-3377.03,0.00013698,2]
[424758965,1781131839000,-3377.03,0.00013698,2]
[424758981,1781131839000,-500.0,0.00013698,2]
[424758967,1781131839000,-551.34,0.00013698,2]
[424758953,1781131839000,-500.0,0.00013698,2]
[424758994,1781131839000,-500.0,0.00013698,2]
[424758987,1781131839000,-500.0,0.00013698,2]
[424758985,1781131839000,-500.0,0.00013698,2]
[424758989,1781131839000,-500.0,0.00013698,2]
[424758991,1781131839000,-500.0,0.00013698,2]
[424758996,1781131839000,-500.0,0.00013698,2]
[424758998,1781131839000,-500.0,0.00013698,2]
[424759000,1781131839000,-500.0,0.00013698,2]
[424759002,1781131839000,-500.0,0.00013698,2]
[424759004,1781131839000,-500.0,0.00013698,2]
[424759006,1781131839000,-500.0,0.00013698,2]
[424758951,1781131839000,-500.0,0.00013698,2]
[424759008,1781131839000,-500.0,0.00013698,2]
[424758983,1781131839000,-500.0,0.00013698,2]
[424758947,1781131839000,-500.0,0.00013698,2]
[424758923,1781131839000,-500.0,0.00013698,2]
[424758959,1781131839000,-3377.03,0.00013698,2]
[424759010,1781131839000,-500.0,0.00013698,2]
[424758910,1781131839000,-500.0,0.00013698,2]
[424758916,1781131839000,-500.0,0.00013698,2]
[424758913,1781131839000,-500.0,0.00013698,2]
[424758917,1781131839000,-500.0,0.00013698,2]
[424758914,1781131839000,-500.0,0.00013698,2]
[424758912,1781131839000,-500.0,0.00013698,2]
[424758911,1781131839000,-413.03435697,0.00013698,2]
[424758915,1781131839000,-500.0,0.00013698,2]
[424758918,1781131839000,-500.0,0.00013698,2]
[424758920,1781131839000,-500.0,0.00013698,2]
[424758921,1781131839000,-500.0,0.00013698,2]
[424758933,1781131839000,-500.0,0.00013698,2]
[424758937,1781131839000,-500.0,0.00013698,2]
[424758935,1781131839000,-500.0,0.00013698,2]
[424758926,1781131839000,-500.0,0.00013698,2]
[424758939,1781131839000,-500.0,0.00013698,2]
[424758927,1781131839000,-500.0,0.00013698,2]
[424758931,1781131839000,-500.0,0.00013698,2]
[424758929,1781131839000,-500.0,0.00013698,2]
[424758941,1781131839000,-500.0,0.00013698,2]
[424758943,1781131839000,-500.0,0.00013698,2]
[424758955,1781131839000,-3377.03,0.00013698,2]
[424758957,1781131839000,-3377.03,0.00013698,2]
[424758945,1781131839000,-500.0,0.00013698,2]
[424758961,1781131839000,-3377.03,0.00013698,2]
[424759012,1781131839000,-568.14,0.00013698,2]
[424759036,1781131839000,-500.0,0.00013698,2]
[424759022,1781131839000,-568.14,0.00013698,2]
[424759079,1781131839000,-500.82450001,0.00013698,2]
[424759081,1781131839000,-562.5,0.00013698,2]
[424759083,1781131839000,-562.5,0.00013698,2]
[424759088,1781131839000,-562.5,0.00013698,2]
[424759086,1781131839000,-562.5,0.00013698,2]
[424759092,1781131839000,-562.5,0.00013698,2]
[424759090,1781131839000,-562.5,0.00013698,2]
[424759093,1781131839000,-562.5,0.00013698,2]
[424759096,1781131839000,-562.5,0.00013698,2]
[424759095,1781131839000,-562.5,0.00013698,2]
[424759098,1781131839000,-562.5,0.00013698,2]
[424759100,1781131839000,-562.5,0.00013698,2]
[424759103,1781131839000,-500.0,0.00013698,2]
[424759113,1781131839000,-500.0,0.00013698,2]
[424759115,1781131839000,-500.0,0.00013698,2]
[424759107,1781131839000,-500.0,0.00013698,2]
[424759109,1781131839000,-500.0,0.00013698,2]
[424759111,1781131839000,-500.0,0.00013698,2]
[424759105,1781131839000,-500.0,0.00013698,2]
[424759118,1781131839000,-602.5269492,0.00013698,2]
[424759120,1781131839000,-500.0,0.00013698,2]
[424759122,1781131839000,-2564.14,0.00013698,2]
[424759124,1781131839000,-2564.14,0.00013698,2]
[424759126,1781131839000,-2564.14,0.00013698,2]
[424759024,1781131839000,-568.14,0.00013698,2]
[424759069,1781131839000,-500.0,0.00013698,2]
[424759077,1781131839000,-500.0,0.00013698,2]
[424759091,1781131839000,-562.5,0.00013698,2]
[424759067,1781131839000,-500.0,0.00013698,2]
[424759014,1781131839000,-568.14,0.00013698,2]
[424759075,1781131839000,-500.0,0.00013698,2]
[424759030,1781131839000,-500.0,0.00013698,2]
[424759026,1781131839000,-500.0,0.00013698,2]
[424759020,1781131839000,-568.14,0.00013698,2]
[424759016,1781131839000,-568.14,0.00013698,2]
[424759018,1781131839000,-568.14,0.00013698,2]
[424759032,1781131839000,-500.0,0.00013698,2]
[424759034,1781131839000,-500.0,0.00013698,2]
[424759046,1781131839000,-500.0,0.00013698,2]
[424759049,1781131839000,-461.11868739,0.00013698,2]
[424759051,1781131839000,-500.0,0.00013698,2]
[424759053,1781131839000,-500.0,0.00013698,2]
[424759028,1781131839000,-500.0,0.00013698,2]
[424759063,1781131839000,-500.0,0.00013698,2]
[424759038,1781131839000,-500.0,0.00013698,2]
[424759061,1781131839000,-500.0,0.00013698,2]
[424759065,1781131839000,-500.0,0.00013698,2]
[424759073,1781131839000,-500.0,0.00013698,2]
[424759059,1781131839000,-500.0,0.00013698,2]
[424759071,1781131839000,-400.98704308,0.00013698,2]
[424759055,1781131839000,-500.0,0.00013698,2]
[424759042,1781131839000,-500.0,0.00013698,2]
[424759044,1781131839000,-500.0,0.00013698,2]
[424759040,1781131839000,-500.0,0.00013698,2]
[424759057,1781131839000,-500.0,0.00013698,2]
[424759206,1781131840000,-500.0,0.00014999,2]
[424759210,1781131840000,-3377.03,0.00014999,2]
[424759208,1781131840000,-500.0,0.00014999,2]
[424759204,1781131840000,-467.0,0.00014999,20]
[424759202,1781131840000,-500.0,0.00014999,19]
[424759181,1781131840000,-151.0,0.00014758,2]
[424759197,1781131840000,-500.0,0.00014999,17]
[424759195,1781131840000,-500.0,0.00014999,16]
[424759193,1781131840000,-500.0,0.00014999,15]
[424759212,1781131840000,-500.0,0.00014999,2]
[424759191,1781131840000,-500.0,0.00014999,14]
[424759199,1781131840000,-500.0,0.00014999,18]
[424759214,1781131840000,-200.0,0.00015,2]
[424759222,1781131840000,-1555.5,0.00015116,2]
[424759218,1781131840000,-150.0,0.00015,2]
[424759229,1781131840000,-500.0,0.00015153,2]
[424759236,1781131840000,-1012.10049071,0.000152,2]
[424759226,1781131840000,-551.34,0.00015153,2]
[424759224,1781131840000,-500.0,0.00015153,2]
[424759231,1781131840000,-568.14,0.00015153,2]
[424759233,1781131840000,-500.0,0.00015153,2]
[424759235,1781131840000,-200.0,0.000152,2]
[424759220,1781131840000,-1113.6,0.00015013,2]
[424759237,1781131840000,-2000.0,0.00015216,2]
[424759238,1781131840000,-1012.10049071,0.000153,2]
[424759216,1781131840000,-1012.10049071,0.00015,2]
[424759179,1781131840000,-152.0,0.00014758,2]
[424759132,1781131840000,-2564.14,0.00013698,2]
[424759173,1781131840000,-152.0,0.00014758,2]
[424759251,1781131840000,-1613.0535,0.00015664,2]
[424759128,1781131840000,-2564.14,0.00013698,2]
[424759138,1781131840000,-200.0,0.00013699,2]
[424759136,1781131840000,-2564.14,0.00013698,2]
[424759134,1781131840000,-2564.14,0.00013698,2]
[424759130,1781131840000,-2564.14,0.00013698,2]
[424759140,1781131840000,-2500.0,0.00013699,2]
[424759142,1781131840000,-263.91285197,0.00013699,2]
[424759144,1781131840000,-150.0,0.000137,2]
[424759146,1781131840000,-150.1118471,0.000137,2]
[424759148,1781131840000,-502.36,0.000137,2]
[424759150,1781131840000,-500.0,0.00013783,9]
[424759177,1781131840000,-152.0,0.00014758,2]
[424759158,1781131840000,-500.0,0.00014192,2]
[424759154,1781131840000,-250.0,0.00014,2]
[424759156,1781131840000,-433.0,0.00014042,2]
[424759165,1781131840000,-30182.06135996,0.00014327,2]
[424759163,1781131840000,-159.04,0.00014317,2]
[424759167,1781131840000,-928.47736,0.00014368,2]
[424759169,1781131840000,-615.22,0.00014436,2]
[424759183,1781131840000,-500.0,0.00014988,10]
[424759185,1781131840000,-500.0,0.00014999,11]
[424759189,1781131840000,-500.0,0.00014999,13]
[424759171,1781131840000,-1500.0,0.00014568,2]
[424759187,1781131840000,-500.0,0.00014999,12]
[424759175,1781131840000,-152.0,0.00014758,2]
[424759152,1781131840000,-2000.0,0.00013833,2]
[424759239,1781131840000,-237.2028677,0.00015319,2]
[424759161,1781131840000,-9873.23527869,0.00014276,2]
[424759253,1781131840000,-2032.28,0.00015682,2]
[424759305,1781131840000,-530.80026601,0.00016609,2]
[424759310,1781131840000,-530.80026601,0.00016659,2]
[424759314,1781131840000,-159.04,0.00016703,2]
[424759312,1781131840000,-530.80026601,0.00016666,2]
[424759318,1781131840000,-1734.62772924,0.0001676,2]
[424759322,1781131840000,-530.80026601,0.00016787,2]
[424759328,1781131840000,-530.80026601,0.00016795,2]
[424759326,1781131840000,-530.80026601,0.00016789,2]
[424759359,1781131840000,-4195.0,0.00017096,2]
[424759316,1781131840000,-1252.0,0.00016721,2]
[424759324,1781131840000,-530.80026601,0.00016789,2]
[424759330,1781131840000,-530.80026601,0.00016796,2]
[424759308,1781131840000,-530.80026601,0.00016614,2]
[424759332,1781131840000,-530.80026601,0.00016832,2]
[424759336,1781131840000,-530.80026601,0.00016853,2]
[424759338,1781131840000,-530.80026601,0.00016914,2]
[424759340,1781131840000,-530.80026601,0.00016925,2]
[424759344,1781131840000,-530.80026601,0.0001698,2]
[424759342,1781131840000,-530.80026601,0.00016929,2]
[424759348,1781131840000,-500.0,0.00017008,2]
[424759346,1781131840000,-500.0,0.00017008,2]
[424759357,1781131840000,-530.80026601,0.00017077,2]
[424759352,1781131840000,-590.47777373,0.00017008,2]
[424759350,1781131840000,-500.0,0.00017008,2]
[424759355,1781131840000,-500.0,0.00017008,2]
[424759250,1781131840000,-502.36,0.000156,2]
[424759334,1781131840000,-530.80026601,0.00016841,2]
[424759303,1781131840000,-2000.0,0.000166,2]
[424759320,1781131840000,-530.80026601,0.00016772,2]
[424759299,1781131840000,-530.80026601,0.00016514,2]
[424759258,1781131840000,-212.96862186,0.00015739,2]
[424759301,1781131840000,-530.80026601,0.00016545,2]
[424759242,1781131840000,-10000.0,0.000154,2]
[424759241,1781131840000,-736.0,0.00015328,2]
[424759256,1781131840000,-152.0,0.00015739,2]
[424759260,1781131840000,-260.38749672,0.00015739,2]
[424759244,1781131840000,-1012.10049071,0.000155,2]
[424759246,1781131840000,-159.04,0.0001551,2]
[424759248,1781131840000,-1012.10049071,0.000156,2]
[424759263,1781131840000,-300.0,0.00016,2]
[424759265,1781131840000,-191.7390802,0.00016,2]
[424759268,1781131840000,-1277.66304053,0.00016039,2]
[424759272,1781131840000,-1672.7364795,0.00016212,2]
[424759261,1781131840000,-615.22,0.0001588,2]
[424759284,1781131840000,-30182.06135996,0.00016428,2]
[424759297,1781131840000,-1113.6,0.00016514,2]
[424759270,1781131840000,-10000.0,0.00016055,2]
[424759288,1781131840000,-282.502183,0.00016438,2]
[424759295,1781131840000,-530.80026601,0.0001646,2]
[424759293,1781131840000,-240.0,0.00016438,2]
[424759286,1781131840000,-530.80026601,0.0001643,2]
[424759290,1781131840000,-382.1,0.00016438,2]
[424759278,1781131840000,-200.0,0.00016394,2]
[424759276,1781131840000,-9873.23527869,0.00016265,2]
[424759274,1781131840000,-168.6138294,0.0001622,2]
[424759280,1781131840000,-200.0,0.00016395,2]
[424759282,1781131840000,-530.80026601,0.00016403,2]
[424759443,1781131841000,-243.77690062,0.00018427,2]
[424759450,1781131841000,-500.0,0.00018581,2]
[424759454,1781131841000,-3377.03,0.00018581,2]
[424759430,1781131841000,-176.02194742,0.00018254,2]
[424759446,1781131841000,-168.6138294,0.00018427,2]
[424759441,1781131841000,-382.1,0.0001841,2]
[424759433,1781131841000,-166.08642978,0.000184,2]
[424759435,1781131841000,-167.15806357,0.000184,2]
[424759426,1781131841000,-2129.0,0.00018243,2]
[424759452,1781131841000,-500.0,0.00018581,2]
[424759437,1781131841000,-157.61337016,0.00018404,2]
[424759448,1781131841000,-30182.06135996,0.00018528,2]
[424759480,1781131841000,-933.0,0.00018847,2]
[424759459,1781131841000,-287.32574093,0.00018847,2]
[424759461,1781131841000,-240.01638274,0.00018847,2]
[424759457,1781131841000,-500.0,0.00018581,2]
[424759463,1781131841000,-3556.0,0.00018847,2]
[424759465,1781131841000,-1358.0,0.00018847,2]
[424759469,1781131841000,-1274.0,0.00018847,2]
[424759477,1781131841000,-150.0,0.00018847,2]
[424759471,1781131841000,-150.0,0.00018847,2]
[424759475,1781131841000,-200.0,0.00018847,2]
[424759467,1781131841000,-383.0,0.00018847,2]
[424759473,1781131841000,-200.0,0.00018847,2]
[424759424,1781131841000,-166.08642978,0.000182,2]
[424759439,1781131841000,-1934.38338736,0.00018404,2]
[424759421,1781131841000,-1113.6,0.00018015,2]
[424759361,1781131841000,-151.0,0.00017111,2]
[424759428,1781131841000,-9873.23527869,0.00018254,2]
[424759491,1781131841000,-623.0,0.00018859,5]
[424759373,1781131841000,-500.0,0.00017113,2]
[424759369,1781131841000,-500.0,0.00017113,2]
[424759371,1781131841000,-568.14,0.00017113,2]
[424759363,1781131841000,-500.0,0.00017113,2]
[424759365,1781131841000,-551.34,0.00017113,2]
[424759378,1781131841000,-2564.14,0.00017113,2]
[424759367,1781131841000,-500.0,0.00017113,2]
[424759376,1781131841000,-562.5,0.00017113,2]
[424759382,1781131841000,-530.80026601,0.00017165,2]
[424759384,1781131841000,-530.80026601,0.00017194,2]
[424759387,1781131841000,-530.80026601,0.00017196,2]
[424759419,1781131841000,-350.0,0.00018,2]
[424759388,1781131841000,-530.80026601,0.00017258,2]
[424759392,1781131841000,-615.22,0.00017323,2]
[424759396,1781131841000,-530.80026601,0.00017389,2]
[424759398,1781131841000,-530.80026601,0.00017393,2]
[424759394,1781131841000,-168.6138294,0.00017324,2]
[424759400,1781131841000,-530.80026601,0.00017399,2]
[424759405,1781131841000,-10308.2309,0.00017609,2]
[424759407,1781131841000,-10578.68411827,0.00017701,2]
[424759402,1781131841000,-502.36,0.000174,2]
[424759411,1781131841000,-1865.36488656,0.00017856,2]
[424759409,1781131841000,-936.57,0.00017728,2]
[424759413,1781131841000,-159.04,0.00017897,2]
[424759417,1781131841000,-166.08642978,0.00018,2]
[424759390,1781131841000,-1798.80895522,0.00017308,2]
[424759493,1781131841000,-502.36,0.000189,2]
[424759380,1781131841000,-530.80026601,0.00017149,2]
[424759497,1781131841000,-160.93281423,0.00019178,2]
[424759540,1781131841000,-151.0,0.000195,2]
[424759554,1781131841000,-151.0,0.000195,2]
[424759557,1781131841000,-500.0,0.000195,2]
[424759559,1781131841000,-151.0,0.000195,2]
[424759561,1781131841000,-151.0,0.000195,2]
[424759563,1781131841000,-500.0,0.000195,2]
[424759573,1781131841000,-151.0,0.000195,2]
[424759569,1781131841000,-500.0,0.000195,2]
[424759571,1781131841000,-151.0,0.000195,2]
[424759575,1781131841000,-500.0,0.000195,2]
[424759565,1781131841000,-151.0,0.000195,2]
[424759567,1781131841000,-151.0,0.000195,2]
[424759581,1781131841000,-151.0,0.000195,2]
[424759583,1781131841000,-500.0,0.000195,2]
[424759577,1781131841000,-151.0,0.000195,2]
[424759579,1781131841000,-500.0,0.000195,2]
[424759587,1781131841000,-500.0,0.000195,2]
[424759594,1781131841000,-168.61382943,0.00019531,2]
[424759592,1781131841000,-500.0,0.000195,2]
[424759596,1781131841000,-1277.66304053,0.00019791,2]
[424759589,1781131841000,-151.0,0.000195,2]
[424759598,1781131841000,-570.0,0.00019863,2]
[424759600,1781131841000,-3620.0,0.00019895,2]
[424759604,1781131841000,-500.0,0.00019999,2]
[424759602,1781131841000,-781.0,0.00019996,5]
[424759548,1781131841000,-500.0,0.000195,2]
[424759552,1781131841000,-151.0,0.000195,2]
[424759585,1781131841000,-151.0,0.000195,2]
[424759550,1781131841000,-2080.17592889,0.000195,2]
[424759534,1781131841000,-151.0,0.000195,2]
[424759482,1781131841000,-150.103,0.00018847,2]
[424759499,1781131841000,-1125.0,0.00019263,2]
[424759486,1781131841000,-419.0,0.00018847,2]
[424759488,1781131841000,-150.057,0.00018847,2]
[424759484,1781131841000,-150.13,0.00018847,2]
[424759501,1781131841000,-851.0,0.00019308,5]
[424759503,1781131841000,-570.0,0.00019452,2]
[424759505,1781131841000,-151.0,0.000195,2]
[424759509,1781131841000,-151.0,0.000195,2]
[424759507,1781131841000,-151.0,0.000195,2]
[424759511,1781131841000,-151.0,0.000195,2]
[424759514,1781131841000,-151.0,0.000195,2]
[424759495,1781131841000,-2005.9555727,0.00018952,2]
[424759524,1781131841000,-151.0,0.000195,2]
[424759522,1781131841000,-151.0,0.000195,2]
[424759538,1781131841000,-151.0,0.000195,2]
[424759544,1781131841000,-151.0,0.000195,2]
[424759542,1781131841000,-500.0,0.000195,2]
[424759532,1781131841000,-151.0,0.000195,2]
[424759546,1781131841000,-151.0,0.000195,2]
[424759516,1781131841000,-151.0,0.000195,2]
[424759518,1781131841000,-151.0,0.000195,2]
[424759530,1781131841000,-151.0,0.000195,2]
[424759520,1781131841000,-151.0,0.000195,2]
[424759536,1781131841000,-500.0,0.000195,2]
[424759528,1781131841000,-151.0,0.000195,2]
[424759526,1781131841000,-151.0,0.000195,2]
[424759661,1781131842000,-9873.23527869,0.00020243,2]
[424759667,1781131842000,-382.1,0.00020381,2]
[424759657,1781131842000,-330.48607955,0.00020177,2]
[424759663,1781131842000,-1125.0,0.00020277,2]
[424759676,1781131842000,-30182.06135996,0.00020629,2]
[424759669,1781131842000,-652.2631735,0.000204,2]
[424759671,1781131842000,-2236.95670847,0.00020596,2]
[424759674,1781131842000,-652.2631735,0.000206,2]
[424759678,1781131842000,-652.2631735,0.000208,2]
[424759665,1781131842000,-562.5,0.00020303,2]
[424759693,1781131842000,-151.0,0.000209,2]
[424759682,1781131842000,-500.0,0.00020853,2]
[424759684,1781131842000,-2564.14,0.00020853,2]
[424759699,1781131842000,-151.0,0.000209,2]
[424759690,1781131842000,-151.0,0.000209,2]
[424759659,1781131842000,-652.2631735,0.000202,2]
[424759697,1781131842000,-151.0,0.000209,2]
[424759688,1781131842000,-151.0,0.000209,2]
[424759695,1781131842000,-151.0,0.000209,2]
[424759701,1781131842000,-3500.0,0.000209,7]
[424759686,1781131842000,-334.59,0.000209,2]
[424759703,1781131842000,-731.0,0.00021,2]
[424759680,1781131842000,-502.36,0.000208,2]
[424759655,1781131842000,-295.46589034,0.00020176,2]
[424759643,1781131842000,-345.0,0.0002,2]
[424759653,1781131842000,-387.30936458,0.00020139,2]
[424759705,1781131842000,-1088.0,0.00021,2]
[424759605,1781131842000,-500.0,0.00019999,2]
[424759606,1781131842000,-500.0,0.00019999,2]
[424759610,1781131842000,-731.0,0.0002,2]
[424759612,1781131842000,-1088.0,0.0002,2]
[424759614,1781131842000,-231.0,0.0002,2]
[424759608,1781131842000,-500.0,0.00019999,2]
[424759616,1781131842000,-156.0,0.0002,2]
[424759619,1781131842000,-634.0,0.0002,2]
[424759627,1781131842000,-190.0,0.0002,2]
[424759647,1781131842000,-1170.68,0.0002,2]
[424759629,1781131842000,-334.0,0.0002,2]
[424759623,1781131842000,-183.0,0.0002,2]
[424759631,1781131842000,-245.0,0.0002,2]
[424759635,1781131842000,-3681.0,0.0002,2]
[424759633,1781131842000,-652.2631735,0.0002,2]
[424759639,1781131842000,-297.95,0.0002,2]
[424759637,1781131842000,-12940.2,0.0002,2]
[424759645,1781131842000,-347.0,0.0002,2]
[424759641,1781131842000,-400.0,0.0002,2]
[424759651,1781131842000,-2157.14243826,0.00020048,2]
[424759649,1781131842000,-283.0,0.0002,2]
[424759621,1781131842000,-208.0,0.0002,2]
[424759625,1781131842000,-720.0,0.0002,2]
[424759715,1781131842000,-15000.0,0.00021,2]
[424759720,1781131842000,-183.0,0.00021,2]
[424759779,1781131842000,-1572.0,0.00021712,2]
[424759793,1781131842000,-150.0,0.00021847,2]
[424759795,1781131842000,-150.0,0.00021847,2]
[424759781,1781131842000,-151.0,0.00021847,2]
[424759800,1781131842000,-212.35,0.000219,7]
[424759789,1781131842000,-382.0,0.00021847,2]
[424759791,1781131842000,-1274.0,0.00021847,2]
[424759785,1781131842000,-3556.0,0.00021847,2]
[424759783,1781131842000,-151.0,0.00021847,2]
[424759787,1781131842000,-1358.0,0.00021847,2]
[424759764,1781131842000,-1000.0,0.000212,2]